[Event "Titled Tuesday Blitz February 22 Late 2022"]
[White "Farmani Anosheh, Armin"]
[Black "Kujawski, Adam"]
[WhiteFideId "24613240"]
[BlackFideId "1100920"]
[WhiteElo "2289"]
[BlackElo "2053"]
[Result "0-1"]
[Round "10"]
[TimeControl "180+1"]
[Date "2022.02.23"]
[WhiteClock "0:00:07"]
[BlackClock "0:00:22"]

1. d4 {[%clk 0:03:00]}  Nf6 {[%clk 0:02:59]} 2. c4 {[%clk 0:03:01]}  e6 {[%clk 0:02:59]} 3. Nf3 {[%clk 0:03:01]}  c5 {[%clk 0:02:58]} 4. d5 {[%clk 0:03:02]}  exd5 {[%clk 0:02:58]} 5. cxd5 {[%clk 0:03:03]}  d6 {[%clk 0:02:58]} 6. Nc3 {[%clk 0:03:03]}  g6 {[%clk 0:02:58]} 7. Bf4 {[%clk 0:03:03]}  a6 {[%clk 0:02:57]} 8. a4 {[%clk 0:03:03]}  Bg7 {[%clk 0:02:57]} 9. e3 {[%clk 0:03:03]}  O-O {[%clk 0:02:57]} 10. Be2 {[%clk 0:02:59]}  Qe7 {[%clk 0:02:56]} 11. Nd2 {[%clk 0:02:58]}  Nbd7 {[%clk 0:02:54]} 12. O-O {[%clk 0:02:58]}  Ne8 {[%clk 0:02:49]} 13. Nc4 {[%clk 0:02:51]}  Rb8 {[%clk 0:02:37]} 14. a5 {[%clk 0:02:49]}  Ne5 {[%clk 0:02:37]} 15. Nb6 {[%clk 0:02:40]}  Nc7 {[%clk 0:02:24]} 16. Bg3 {[%clk 0:02:30]}  f5 {[%clk 0:02:17]} 17. Ra4 {[%clk 0:02:13]}  Bd7 {[%clk 0:02:09]} 18. Nxd7 {[%clk 0:02:12]}  Qxd7 {[%clk 0:02:01]} 19. f4 {[%clk 0:01:54]}  Nf7 {[%clk 0:01:45]} 20. e4 {[%clk 0:01:54]}  Nb5 {[%clk 0:01:26]} 21. exf5 {[%clk 0:00:36]}  gxf5 {[%clk 0:01:21]} 22. Nxb5 {[%clk 0:00:34]}  axb5 {[%clk 0:01:20]} 23. Ra2 {[%clk 0:00:33]}  Rfe8 {[%clk 0:01:14]} 24. Bf2 {[%clk 0:00:31]}  Re4 {[%clk 0:01:04]} 25. g3 {[%clk 0:00:26]}  Bd4 {[%clk 0:00:59]} 26. Bd3 {[%clk 0:00:15]}  Bxf2+ {[%clk 0:00:59]} 27. Rxf2 {[%clk 0:00:16]}  Rd4 {[%clk 0:00:58]} 28. Qc2 {[%clk 0:00:16]}  Nh6 {[%clk 0:00:54]} 29. Rd2 {[%clk 0:00:14]}  Re8 {[%clk 0:00:48]} 30. Bf1 {[%clk 0:00:13]}  Rxd2 {[%clk 0:00:44]} 31. Qxd2 {[%clk 0:00:13]}  Qe7 {[%clk 0:00:41]} 32. Ra3 {[%clk 0:00:12]}  b4 {[%clk 0:00:40]} 33. Rf3 {[%clk 0:00:12]}  Ng4 {[%clk 0:00:38]} 34. h3 {[%clk 0:00:12]}  Nf6 {[%clk 0:00:38]} 35. Bc4 {[%clk 0:00:11]}  Ne4 {[%clk 0:00:35]} 36. Qd3 {[%clk 0:00:11]}  Qf6 {[%clk 0:00:34]} 37. Re3 {[%clk 0:00:11]}  Qxb2 {[%clk 0:00:32]} 38. g4 {[%clk 0:00:11]}  Qf2+ {[%clk 0:00:26]} 39. Kh1 {[%clk 0:00:10]}  Ng3+ {[%clk 0:00:24]} 40. Rxg3 {[%clk 0:00:08]}  Re1+ {[%clk 0:00:23]} 41. Qf1 {[%clk 0:00:07]}  Rxf1+ {[%clk 0:00:24]} 42. Bxf1 {[%clk 0:00:08]}  Qxg3 {[%clk 0:00:23]} 43. gxf5 {[%clk 0:00:07]}  Qxf4 {[%clk 0:00:22]} 44. Bb5 {[%clk 0:00:07]} 0-1


[Site "https://www.chess.com"]

[Event "Titled Tuesday Blitz February 22 Late 2022"]
[White "Garagulya, Konstantin"]
[Black "Aradhya, Garg"]
[WhiteFideId "4128931"]
[BlackFideId "25006746"]
[WhiteElo "2514"]
[BlackElo "2681"]
[Result "0-1"]
[Round "10"]
[TimeControl "180+1"]
[Date "2022.02.23"]
[WhiteClock "0:00:01"]
[BlackClock "0:00:19"]

1. d4 {[%clk 0:02:57]}  d5 {[%clk 0:03:00]} 2. Nf3 {[%clk 0:02:57]}  Nf6 {[%clk 0:03:00]} 3. c4 {[%clk 0:02:57]}  c6 {[%clk 0:03:00]} 4. Qc2 {[%clk 0:02:58]}  g6 {[%clk 0:02:59]} 5. Bf4 {[%clk 0:02:58]}  Bg7 {[%clk 0:02:59]} 6. Nbd2 {[%clk 0:02:57]}  O-O {[%clk 0:02:59]} 7. e3 {[%clk 0:02:58]}  c5 {[%clk 0:02:57]} 8. dxc5 {[%clk 0:02:57]}  Na6 {[%clk 0:02:57]} 9. a3 {[%clk 0:02:56]}  Bf5 {[%clk 0:02:55]} 10. Bd3 {[%clk 0:02:09]}  Bxd3 {[%clk 0:02:54]} 11. Qxd3 {[%clk 0:02:09]}  Nxc5 {[%clk 0:02:54]} 12. Qc2 {[%clk 0:02:10]}  dxc4 {[%clk 0:02:43]} 13. O-O {[%clk 0:02:09]}  b5 {[%clk 0:02:43]} 14. a4 {[%clk 0:02:02]}  a6 {[%clk 0:02:40]} 15. Rfd1 {[%clk 0:01:51]}  Qb6 {[%clk 0:02:38]} 16. Be5 {[%clk 0:01:48]}  Rad8 {[%clk 0:02:33]} 17. Bd4 {[%clk 0:01:46]}  Qc7 {[%clk 0:02:33]} 18. axb5 {[%clk 0:01:44]}  axb5 {[%clk 0:02:34]} 19. b3 {[%clk 0:01:39]}  Ne6 {[%clk 0:02:11]} 20. bxc4 {[%clk 0:01:36]}  Nxd4 {[%clk 0:02:10]} 21. Nxd4 {[%clk 0:01:36]}  bxc4 {[%clk 0:02:10]} 22. Qxc4 {[%clk 0:01:36]}  Qxc4 {[%clk 0:02:10]} 23. Nxc4 {[%clk 0:01:37]}  Nd5 {[%clk 0:02:02]} 24. Nc6 {[%clk 0:01:27]}  Rc8 {[%clk 0:02:01]} 25. Ra6 {[%clk 0:01:05]}  e6 {[%clk 0:01:47]} 26. e4 {[%clk 0:00:50]}  Nc3 {[%clk 0:01:47]} 27. Re1 {[%clk 0:00:40]}  Rc7 {[%clk 0:01:43]} 28. g3 {[%clk 0:00:32]}  Rfc8 {[%clk 0:01:09]} 29. N4a5 {[%clk 0:00:32]}  Nb5 {[%clk 0:01:08]} 30. Kg2 {[%clk 0:00:29]}  Nd4 {[%clk 0:01:07]} 31. Nxd4 {[%clk 0:00:29]}  Bxd4 {[%clk 0:01:08]} 32. Rd1 {[%clk 0:00:26]}  Be5 {[%clk 0:00:54]} 33. Rd2 {[%clk 0:00:24]}  Rc2 {[%clk 0:00:53]} 34. Rxc2 {[%clk 0:00:22]}  Rxc2 {[%clk 0:00:54]} 35. Nc6 {[%clk 0:00:21]}  Bc3 {[%clk 0:00:52]} 36. Kg1 {[%clk 0:00:10]}  Be1 {[%clk 0:00:49]} 37. f4 {[%clk 0:00:10]}  Bf2+ {[%clk 0:00:49]} 38. Kf1 {[%clk 0:00:10]}  Bc5 {[%clk 0:00:48]} 39. h4 {[%clk 0:00:09]}  Rf2+ {[%clk 0:00:41]} 40. Ke1 {[%clk 0:00:09]}  Rf3 {[%clk 0:00:39]} 41. e5 {[%clk 0:00:08]}  Rxg3 {[%clk 0:00:37]} 42. Ra8+ {[%clk 0:00:07]}  Kg7 {[%clk 0:00:35]} 43. Rc8 {[%clk 0:00:08]}  Rd3 {[%clk 0:00:32]} 44. Ke2 {[%clk 0:00:08]}  Rd7 {[%clk 0:00:29]} 45. Na5 {[%clk 0:00:03]}  Be7 {[%clk 0:00:28]} 46. h5 {[%clk 0:00:03]}  gxh5 {[%clk 0:00:28]} 47. Nc4 {[%clk 0:00:03]}  Rd5 {[%clk 0:00:19]} 48. Ne3 {[%clk 0:00:02]}  Rc5 {[%clk 0:00:19]} 49. Rb8 {[%clk 0:00:01]}  Ra5 {[%clk 0:00:19]} 50. Rb7 {[%clk 0:00:01]}  Bc5 {[%clk 0:00:19]} 51. Ng2 {[%clk 0:00:01]}  Ra2+ {[%clk 0:00:19]} 52. Kf3 {[%clk 0:00:01]}  Ra3+ {[%clk 0:00:19]} 53. Ke4 {[%clk 0:00:01]}  Rg3 {[%clk 0:00:19]} 0-1


[Site "https://www.chess.com"]

[Event "Titled Tuesday Blitz February 22 Late 2022"]
[White "Gerbelli Neto, Eduardo"]
[Black "Novikova, Galina"]
[WhiteFideId "2103281"]
[BlackFideId "4157095"]
[WhiteElo "2178"]
[BlackElo "1863"]
[Result "0-1"]
[Round "10"]
[TimeControl "180+1"]
[Date "2022.02.23"]
[WhiteClock "0:01:42"]
[BlackClock "0:02:13"]

1. e4 {[%clk 0:02:58]}  e6 {[%clk 0:03:00]} 2. d4 {[%clk 0:02:57]}  d5 {[%clk 0:03:01]} 3. Nc3 {[%clk 0:02:57]}  Bb4 {[%clk 0:03:00]} 4. Qd3 {[%clk 0:02:57]}  Nf6 {[%clk 0:02:57]} 5. e5 {[%clk 0:02:57]}  Nfd7 {[%clk 0:02:57]} 6. Qg3 {[%clk 0:02:56]}  Kf8 {[%clk 0:02:52]} 7. Bg5 {[%clk 0:02:55]}  Be7 {[%clk 0:02:50]} 8. h4 {[%clk 0:02:55]}  h6 {[%clk 0:02:49]} 9. Be3 {[%clk 0:02:53]}  c6 {[%clk 0:02:48]} 10. h5 {[%clk 0:02:51]}  b5 {[%clk 0:02:49]} 11. f4 {[%clk 0:02:49]}  b4 {[%clk 0:02:48]} 12. Nce2 {[%clk 0:02:48]}  Qa5 {[%clk 0:02:48]} 13. b3 {[%clk 0:02:42]}  c5 {[%clk 0:02:48]} 14. Nf3 {[%clk 0:02:41]}  Nc6 {[%clk 0:02:45]} 15. Qf2 {[%clk 0:02:33]}  Ba6 {[%clk 0:02:39]} 16. g4 {[%clk 0:02:31]}  cxd4 {[%clk 0:02:33]} 17. Nfxd4 {[%clk 0:02:29]}  Nxd4 {[%clk 0:02:32]} 18. Nxd4 {[%clk 0:02:25]}  Bxf1 {[%clk 0:02:24]} 19. Kxf1 {[%clk 0:02:22]}  Nc5 {[%clk 0:02:24]} 20. f5 {[%clk 0:02:11]}  Ne4 {[%clk 0:02:23]} 21. Qf3 {[%clk 0:02:08]}  Kg8 {[%clk 0:02:18]} 22. fxe6 {[%clk 0:01:59]}  fxe6 {[%clk 0:02:19]} 23. Nxe6 {[%clk 0:01:51]}  Qa6+ {[%clk 0:02:18]} 24. Kg2 {[%clk 0:01:48]}  Qxe6 {[%clk 0:02:19]} 25. Rhf1 {[%clk 0:01:42]}  Rf8 {[%clk 0:02:18]} 26. Qe2 {[%clk 0:01:42]}  Kh7 {[%clk 0:02:13]} 0-1


[Site "https://www.chess.com"]

[Event "Titled Tuesday Blitz February 22 Late 2022"]
[White "Gracia Alvarez, Gerardo Antonio"]
[Black "Araujo Filho, Luiz Antonio Coel"]
[WhiteFideId "5109124"]
[BlackFideId "2130661"]
[WhiteElo "2139"]
[BlackElo "2230"]
[Result "1-0"]
[Round "10"]
[TimeControl "180+1"]
[Date "2022.02.23"]
[WhiteClock "0:00:54"]
[BlackClock "0:00:13"]

1. c4 {[%clk 0:02:59]}  f5 {[%clk 0:02:59]} 2. Nc3 {[%clk 0:02:59]}  Nf6 {[%clk 0:02:59]} 3. g3 {[%clk 0:02:59]}  g6 {[%clk 0:02:59]} 4. Bg2 {[%clk 0:03:00]}  Bg7 {[%clk 0:03:00]} 5. d3 {[%clk 0:03:00]}  O-O {[%clk 0:03:00]} 6. e4 {[%clk 0:03:00]}  d6 {[%clk 0:03:00]} 7. Nge2 {[%clk 0:02:59]}  c6 {[%clk 0:02:59]} 8. O-O {[%clk 0:02:58]}  e5 {[%clk 0:02:58]} 9. f4 {[%clk 0:02:57]}  Qe7 {[%clk 0:02:47]} 10. h3 {[%clk 0:02:54]}  Na6 {[%clk 0:02:27]} 11. Be3 {[%clk 0:02:51]}  Nc7 {[%clk 0:02:08]} 12. Kh2 {[%clk 0:02:49]}  Ne6 {[%clk 0:01:58]} 13. Qd2 {[%clk 0:02:45]}  Nh5 {[%clk 0:01:52]} 14. Rae1 {[%clk 0:02:41]}  Nd4 {[%clk 0:01:49]} 15. Bg1 {[%clk 0:02:25]}  fxe4 {[%clk 0:01:33]} 16. Nxd4 {[%clk 0:02:16]}  exd4 {[%clk 0:01:29]} 17. Nxe4 {[%clk 0:02:16]}  Qc7 {[%clk 0:01:25]} 18. Qb4 {[%clk 0:01:58]}  c5 {[%clk 0:01:21]} 19. Qb3 {[%clk 0:01:52]}  Kh8 {[%clk 0:01:11]} 20. Ng5 {[%clk 0:01:52]}  h6 {[%clk 0:00:58]} 21. Ne6 {[%clk 0:01:51]}  Bxe6 {[%clk 0:00:57]} 22. Rxe6 {[%clk 0:01:52]}  Kh7 {[%clk 0:00:56]} 23. Rfe1 {[%clk 0:01:37]}  Rf7 {[%clk 0:00:55]} 24. Be4 {[%clk 0:01:31]}  Nf6 {[%clk 0:00:54]} 25. Bf3 {[%clk 0:01:27]}  Rb8 {[%clk 0:00:51]} 26. R1e2 {[%clk 0:01:19]}  a6 {[%clk 0:00:44]} 27. a4 {[%clk 0:01:18]}  Qd7 {[%clk 0:00:36]} 28. Bf2 {[%clk 0:01:11]}  b5 {[%clk 0:00:33]} 29. Be1 {[%clk 0:01:01]}  h5 {[%clk 0:00:26]} 30. g4 {[%clk 0:00:55]}  hxg4 {[%clk 0:00:23]} 31. hxg4 {[%clk 0:00:56]}  bxa4 {[%clk 0:00:13]} 32. Qxb8 {[%clk 0:00:54]} 1-0


[Site "https://www.chess.com"]

[Event "Titled Tuesday Blitz February 22 Late 2022"]
[White "Gupta, Abhijeet"]
[Black "Jones, Gawain C B"]
[WhiteFideId "5010608"]
[BlackFideId "409561"]
[WhiteElo "2549"]
[BlackElo "2657"]
[Result "0-1"]
[Round "10"]
[TimeControl "180+1"]
[Date "2022.02.22"]
[WhiteClock "0:00:01"]
[BlackClock "0:00:03"]

1. d4 {[%clk 0:02:57]}  Nf6 {[%clk 0:03:00]} 2. c4 {[%clk 0:02:57]}  g6 {[%clk 0:03:00]} 3. Nc3 {[%clk 0:02:57]}  Bg7 {[%clk 0:03:01]} 4. e4 {[%clk 0:02:58]}  d6 {[%clk 0:03:01]} 5. f3 {[%clk 0:02:58]}  O-O {[%clk 0:03:00]} 6. Nge2 {[%clk 0:02:59]}  a6 {[%clk 0:02:56]} 7. Be3 {[%clk 0:02:58]}  Nbd7 {[%clk 0:02:55]} 8. Qd2 {[%clk 0:02:57]}  b5 {[%clk 0:02:55]} 9. Bh6 {[%clk 0:02:58]}  e5 {[%clk 0:02:52]} 10. O-O-O {[%clk 0:02:53]}  Re8 {[%clk 0:02:41]} 11. Bxg7 {[%clk 0:02:52]}  Kxg7 {[%clk 0:02:41]} 12. h4 {[%clk 0:02:52]}  h5 {[%clk 0:02:35]} 13. Nd5 {[%clk 0:02:42]}  c6 {[%clk 0:02:31]} 14. Ne3 {[%clk 0:02:37]}  Qe7 {[%clk 0:02:15]} 15. g4 {[%clk 0:02:34]}  Nb6 {[%clk 0:02:14]} 16. Ng3 {[%clk 0:02:31]}  hxg4 {[%clk 0:01:49]} 17. h5 {[%clk 0:02:28]}  exd4 {[%clk 0:01:36]} 18. Nxg4 {[%clk 0:02:12]}  Bxg4 {[%clk 0:01:22]} 19. hxg6 {[%clk 0:02:05]}  Rh8 {[%clk 0:01:08]} 20. fxg4 {[%clk 0:02:01]}  fxg6 {[%clk 0:01:06]} 21. Rxh8 {[%clk 0:01:14]}  Rxh8 {[%clk 0:01:04]} 22. g5 {[%clk 0:01:06]}  Nfd7 {[%clk 0:01:02]} 23. Qxd4+ {[%clk 0:00:52]}  Qe5 {[%clk 0:00:59]} 24. Qxd6 {[%clk 0:00:42]}  bxc4 {[%clk 0:00:39]} 25. Kb1 {[%clk 0:00:21]}  Rh2 {[%clk 0:00:29]} 26. Ne2 {[%clk 0:00:12]}  Qxe4+ {[%clk 0:00:17]} 27. Ka1 {[%clk 0:00:12]}  Rxe2 {[%clk 0:00:06]} 28. Bxe2 {[%clk 0:00:10]}  Qxe2 {[%clk 0:00:07]} 29. Rh1 {[%clk 0:00:09]}  Qe5 {[%clk 0:00:04]} 30. Qxc6 {[%clk 0:00:09]}  Qxg5 {[%clk 0:00:03]} 31. a4 {[%clk 0:00:08]}  Qf6 {[%clk 0:00:03]} 32. Qc7 {[%clk 0:00:03]}  Qf7 {[%clk 0:00:03]} 33. a5 {[%clk 0:00:03]}  Nd5 {[%clk 0:00:03]} 34. Qxc4 {[%clk 0:00:03]}  N7f6 {[%clk 0:00:02]} 35. Qd4 {[%clk 0:00:03]}  Qc7 {[%clk 0:00:02]} 36. Qd2 {[%clk 0:00:03]}  Qf4 {[%clk 0:00:02]} 37. Qc2 {[%clk 0:00:01]}  Qf5 {[%clk 0:00:03]} 38. Qd2 {[%clk 0:00:01]}  Ne7 {[%clk 0:00:03]} 0-1


[Site "https://www.chess.com"]

[Event "Titled Tuesday Blitz February 22 Late 2022"]
[White "Hoffmann, Asa"]
[Black "Tan, Jun Ying"]
[WhiteFideId "2001470"]
[BlackFideId "5710413"]
[WhiteElo "2117"]
[BlackElo "1827"]
[Result "0-1"]
[Round "10"]
[TimeControl "180+1"]
[Date "2022.02.23"]
[WhiteClock "0:00:16"]
[BlackClock "0:00:23"]

1. d4 {[%clk 0:02:39]}  Nf6 {[%clk 0:02:59]} 2. Bg5 {[%clk 0:02:36]}  c5 {[%clk 0:02:59]} 3. d5 {[%clk 0:02:35]}  Ne4 {[%clk 0:02:59]} 4. Bc1 {[%clk 0:02:34]}  e5 {[%clk 0:02:53]} 5. g3 {[%clk 0:02:31]}  Nd6 {[%clk 0:02:47]} 6. Nc3 {[%clk 0:02:28]}  f5 {[%clk 0:02:47]} 7. f4 {[%clk 0:02:25]}  e4 {[%clk 0:02:46]} 8. e3 {[%clk 0:02:22]}  Be7 {[%clk 0:02:46]} 9. Bg2 {[%clk 0:02:07]}  b5 {[%clk 0:02:40]} 10. Nh3 {[%clk 0:01:59]}  b4 {[%clk 0:02:37]} 11. Ne2 {[%clk 0:01:58]}  O-O {[%clk 0:02:37]} 12. Nf2 {[%clk 0:01:56]}  Ba6 {[%clk 0:02:36]} 13. Bf1 {[%clk 0:01:48]}  Bb5 {[%clk 0:02:32]} 14. c3 {[%clk 0:01:46]}  a5 {[%clk 0:02:29]} 15. Bd2 {[%clk 0:01:41]}  Na6 {[%clk 0:02:22]} 16. a3 {[%clk 0:01:38]}  bxa3 {[%clk 0:02:18]} 17. bxa3 {[%clk 0:01:31]}  Bf6 {[%clk 0:02:09]} 18. Nc1 {[%clk 0:01:24]}  Bxf1 {[%clk 0:02:08]} 19. Kxf1 {[%clk 0:01:24]}  c4 {[%clk 0:02:06]} 20. Kg2 {[%clk 0:01:19]}  Nc5 {[%clk 0:02:06]} 21. Ne2 {[%clk 0:01:18]}  a4 {[%clk 0:01:58]} 22. Nd4 {[%clk 0:01:16]}  Bxd4 {[%clk 0:01:55]} 23. cxd4 {[%clk 0:01:11]}  Nb3 {[%clk 0:01:46]} 24. Bb4 {[%clk 0:01:10]}  Nb5 {[%clk 0:01:38]} 25. h3 {[%clk 0:01:03]}  d6 {[%clk 0:01:31]} 26. g4 {[%clk 0:01:01]}  g6 {[%clk 0:01:27]} 27. h4 {[%clk 0:00:58]}  Qf6 {[%clk 0:01:24]} 28. g5 {[%clk 0:00:56]}  Qf7 {[%clk 0:01:24]} 29. h5 {[%clk 0:00:56]}  Qxd5 {[%clk 0:01:20]} 30. hxg6 {[%clk 0:00:46]}  hxg6 {[%clk 0:01:20]} 31. Rh6 {[%clk 0:00:45]}  Kg7 {[%clk 0:01:18]} 32. Nh1 {[%clk 0:00:36]}  Nxa1 {[%clk 0:01:15]} 33. Qxa1 {[%clk 0:00:35]}  Rh8 {[%clk 0:01:14]} 34. Ng3 {[%clk 0:00:34]}  Rxh6 {[%clk 0:01:09]} 35. gxh6+ {[%clk 0:00:33]}  Kxh6 {[%clk 0:01:10]} 36. Qh1+ {[%clk 0:00:29]}  Kg7 {[%clk 0:01:10]} 37. Qh4 {[%clk 0:00:28]}  Rh8 {[%clk 0:00:37]} 38. Qg5 {[%clk 0:00:28]}  Qe6 {[%clk 0:00:34]} 39. d5 {[%clk 0:00:21]}  Qxd5 {[%clk 0:00:32]} 40. Ba5 {[%clk 0:00:17]}  c3 {[%clk 0:00:24]} 41. Bd8 {[%clk 0:00:16]}  Qf7 {[%clk 0:00:23]} 0-1


[Site "https://www.chess.com"]

[Event "Titled Tuesday Blitz February 22 Late 2022"]
[White "Horak, Martin"]
[Black "Borisova, Ekaterina"]
[WhiteFideId "367095"]
[BlackFideId "34124184"]
[WhiteElo "1997"]
[BlackElo "2034"]
[Result "0-1"]
[Round "10"]
[TimeControl "180+1"]
[Date "2022.02.23"]
[WhiteClock "0:00:13"]
[BlackClock "0:00:26"]

1. d4 {[%clk 0:03:00]}  Nf6 {[%clk 0:02:59]} 2. c4 {[%clk 0:03:00]}  e6 {[%clk 0:02:59]} 3. g3 {[%clk 0:03:00]}  d5 {[%clk 0:02:59]} 4. Bg2 {[%clk 0:03:00]}  Be7 {[%clk 0:02:59]} 5. Nf3 {[%clk 0:03:00]}  O-O {[%clk 0:02:59]} 6. O-O {[%clk 0:03:01]}  dxc4 {[%clk 0:02:59]} 7. Qc2 {[%clk 0:03:01]}  Bd7 {[%clk 0:02:52]} 8. Qxc4 {[%clk 0:02:48]}  a6 {[%clk 0:02:51]} 9. a4 {[%clk 0:02:48]}  Bc6 {[%clk 0:02:45]} 10. Bg5 {[%clk 0:02:41]}  Bd5 {[%clk 0:02:35]} 11. Qc2 {[%clk 0:02:39]}  Be4 {[%clk 0:02:34]} 12. Qc1 {[%clk 0:02:39]}  Nbd7 {[%clk 0:02:28]} 13. Nc3 {[%clk 0:02:38]}  Bg6 {[%clk 0:02:23]} 14. Rd1 {[%clk 0:02:29]}  h6 {[%clk 0:02:13]} 15. Bxf6 {[%clk 0:02:29]}  Nxf6 {[%clk 0:02:12]} 16. Ne5 {[%clk 0:02:26]}  Bh5 {[%clk 0:02:11]} 17. Bxb7 {[%clk 0:02:26]}  Nd5 {[%clk 0:02:04]} 18. Nxd5 {[%clk 0:01:28]}  exd5 {[%clk 0:02:01]} 19. Bxa8 {[%clk 0:01:25]}  Qxa8 {[%clk 0:01:58]} 20. g4 {[%clk 0:01:16]}  Bg6 {[%clk 0:01:53]} 21. Qc6 {[%clk 0:01:14]}  Qc8 {[%clk 0:01:50]} 22. Qd7 {[%clk 0:01:13]}  Qxd7 {[%clk 0:01:41]} 23. Nxd7 {[%clk 0:01:12]}  Re8 {[%clk 0:01:42]} 24. Ne5 {[%clk 0:01:13]}  Be4 {[%clk 0:01:41]} 25. f3 {[%clk 0:01:13]}  Bh7 {[%clk 0:01:41]} 26. e3 {[%clk 0:00:56]}  Bd6 {[%clk 0:01:39]} 27. Kf2 {[%clk 0:00:51]}  f6 {[%clk 0:01:31]} 28. Nd3 {[%clk 0:00:50]}  a5 {[%clk 0:01:26]} 29. Rac1 {[%clk 0:00:47]}  Rb8 {[%clk 0:01:25]} 30. Rc2 {[%clk 0:00:34]}  Rb3 {[%clk 0:01:20]} 31. Rc3 {[%clk 0:00:35]}  Rb6 {[%clk 0:01:16]} 32. b3 {[%clk 0:00:35]}  Kf7 {[%clk 0:01:10]} 33. h4 {[%clk 0:00:35]}  Ke7 {[%clk 0:01:04]} 34. h5 {[%clk 0:00:35]}  Kd8 {[%clk 0:01:00]} 35. Rdc1 {[%clk 0:00:32]}  Ba3 {[%clk 0:00:58]} 36. R1c2 {[%clk 0:00:30]}  Bd6 {[%clk 0:00:56]} 37. Rc1 {[%clk 0:00:28]}  Ba3 {[%clk 0:00:56]} 38. Rg1 {[%clk 0:00:28]}  Bd6 {[%clk 0:00:56]} 39. Nf4 {[%clk 0:00:26]}  Bg8 {[%clk 0:00:38]} 40. Ng6 {[%clk 0:00:23]}  Bf7 {[%clk 0:00:33]} 41. f4 {[%clk 0:00:23]}  Bb4 {[%clk 0:00:32]} 42. Rd3 {[%clk 0:00:23]}  Rc6 {[%clk 0:00:32]} 43. Kf3 {[%clk 0:00:20]}  Rc2 {[%clk 0:00:30]} 44. g5 {[%clk 0:00:18]}  Be6 {[%clk 0:00:29]} 45. gxf6 {[%clk 0:00:16]}  gxf6 {[%clk 0:00:29]} 46. Nh4 {[%clk 0:00:15]}  Bh3 {[%clk 0:00:26]} 47. Rg3 {[%clk 0:00:14]}  Bf1 {[%clk 0:00:26]} 48. Rd1 {[%clk 0:00:13]}  Be2+ {[%clk 0:00:26]} 0-1


[Site "https://www.chess.com"]

[Event "Titled Tuesday Blitz February 22 Late 2022"]
[White "Kamsky, Gata"]
[Black "Goryachkina, Aleksandra"]
[WhiteFideId "2000024"]
[BlackFideId "4147103"]
[WhiteElo "2645"]
[BlackElo "2426"]
[Result "1-0"]
[Round "10"]
[TimeControl "180+1"]
[Date "2022.02.22"]
[WhiteClock "0:02:00"]
[BlackClock "0:00:26"]

1. e4 {[%clk 0:03:00]}  c5 {[%clk 0:02:58]} 2. Nc3 {[%clk 0:02:59]}  e6 {[%clk 0:02:57]} 3. Nf3 {[%clk 0:02:59]}  d5 {[%clk 0:02:56]} 4. exd5 {[%clk 0:02:58]}  exd5 {[%clk 0:02:56]} 5. Bb5+ {[%clk 0:02:58]}  Nc6 {[%clk 0:02:50]} 6. O-O {[%clk 0:02:51]}  Nf6 {[%clk 0:02:40]} 7. d4 {[%clk 0:02:48]}  Be7 {[%clk 0:02:33]} 8. dxc5 {[%clk 0:02:45]}  Bxc5 {[%clk 0:02:22]} 9. Bg5 {[%clk 0:02:34]}  Be6 {[%clk 0:01:57]} 10. Bxf6 {[%clk 0:02:32]}  gxf6 {[%clk 0:01:57]} 11. Nd4 {[%clk 0:02:28]}  Qd6 {[%clk 0:01:45]} 12. Na4 {[%clk 0:02:06]}  Bb4 {[%clk 0:00:51]} 13. c3 {[%clk 0:02:05]}  Ba5 {[%clk 0:00:50]} 14. b4 {[%clk 0:02:04]}  Bc7 {[%clk 0:00:50]} 15. f4 {[%clk 0:02:04]}  a6 {[%clk 0:00:34]} 16. Bxc6+ {[%clk 0:02:03]}  bxc6 {[%clk 0:00:34]} 17. Qh5 {[%clk 0:02:01]}  O-O-O {[%clk 0:00:26]} 18. Qe2 {[%clk 0:02:00]} 1-0


[Site "https://www.chess.com"]